bitfinex/quotes_BTCUSD_20251114
["timestamp","ask_amount","ask_price","bid_price","bid_amount"]
[1763101090893,0.5796948,97013.0,96988.0,0.01173]
[1763101091110,0.5796948,97013.0,96991.0,0.02433]
[1763101091322,0.55773137,97013.0,97000.0,10.07569]
[1763101091495,0.55773137,97013.0,97001.0,0.1006426]
[1763101091720,0.35157344,97013.0,97002.0,0.20618114]
[1763101091921,0.02957344,97013.0,97001.0,0.1006426]
[1763101092122,0.02857344,97013.0,97010.0,0.02]
[1763101092522,0.20615475,97015.0,97001.0,0.1006426]
[1763101092769,0.20615475,97015.0,97013.0,0.01173]
[1763101092905,0.01906815,97014.0,97013.0,0.01173]
[1763101093104,0.35160212,97014.0,97013.0,0.01173]
[1763101093475,0.20615793,97013.0,97012.0,0.11453306]
[1763101093662,0.23476005,97013.0,97012.0,0.11453306]
[1763101094250,0.23476005,97013.0,97012.0,0.11553306]
[1763101094459,0.02860212,97013.0,97012.0,0.12870137]
[1763101095470,0.02860212,97013.0,97012.0,0.12970137]
[1763101095726,0.23476005,97013.0,97012.0,0.12970137]
[1763101096044,0.02860212,97013.0,97012.0,0.12870137]
[1763101096544,0.02860212,97013.0,97012.0,0.12970137]
[1763101096960,0.02860212,97013.0,97012.0,0.13070137]
[1763101097291,0.02860212,97013.0,97012.0,0.12970137]
[1763101097495,0.20615638,97014.0,97013.0,0.02433]
[1763101097699,0.20615638,97014.0,97013.0,0.05548514]
[1763101097949,0.21570659,97014.0,97012.0,0.11553306]
[1763101098107,0.00955021,97013.0,97012.0,0.11553306]
[1763101098312,0.02865106,97013.0,97012.0,0.11453306]
[1763101098778,0.02865106,97013.0,97012.0,0.11353306]
[1763101099530,0.41636146,97013.0,97012.0,0.11353306]
[1763101100106,0.4383708,97013.0,97012.0,0.11353306]
[1763101100317,0.3736604,97013.0,97012.0,0.11453306]
[1763101100582,0.0506604,97013.0,97012.0,0.11453306]
[1763101100794,0.02865106,97013.0,97012.0,0.11353306]
[1763101101015,0.02865106,97013.0,97012.0,0.11453306]
[1763101101238,0.02865106,97013.0,97012.0,0.12599537]
[1763101101440,0.01030502,97040.0,97021.0,0.0268]
[1763101101653,0.02202547,97040.0,97033.0,0.1157126]
[1763101101857,0.03639443,97055.0,97039.0,0.0268]
[1763101101858,0.20607597,97052.0,97039.0,0.0268]
[1763101102062,0.05459212,97065.0,97039.0,0.0268]
[1763101102063,0.02734782,97071.0,97054.0,0.01507]
[1763101102267,0.03639443,97076.0,97051.0,0.1006426]
[1763101102268,0.02869728,97069.0,97056.0,0.01173]
[1763101102461,0.20604537,97066.0,97056.0,0.01173]
[1763101102660,0.02734782,97077.0,97056.0,0.01173]
[1763101102661,0.00956576,97065.0,97057.0,0.02433]
[1763101102874,0.20606235,97058.0,97057.0,0.02433]
[1763101103073,0.00956576,97058.0,97057.0,0.03800026]
[1763101103230,0.20605076,97064.0,97057.0,0.03800026]
[1763101103437,0.20604324,97067.0,97066.0,0.0268]
[1763101103752,0.20604324,97067.0,97066.0,0.01173]
[1763101103753,0.23473365,97067.0,97066.0,0.01173]
[1763101104589,0.23487108,97067.0,97066.0,0.01173]
[1763101104728,0.23487108,97067.0,97066.0,0.01373]
[1763101105150,0.23486075,97067.0,97066.0,0.01173]
[1763101105462,0.23486075,97067.0,97066.0,0.01273]
[1763101106031,0.23486075,97067.0,97066.0,0.001]
[1763101107050,0.20604961,97064.0,97063.0,0.02433]
[1763101107279,0.20618139,97067.0,97064.0,0.02433]
[1763101107492,0.00013743,97067.0,97066.0,0.1157126]
[1763101107699,0.00013743,97067.0,97066.0,0.11464686]
[1763101108043,0.00013743,97067.0,97066.0,0.1016426]
[1763101108457,0.00013743,97067.0,97066.0,0.1006426]
[1763101109982,0.20606447,97057.0,97050.0,0.02]
[1763101110201,0.20606447,97057.0,97048.0,0.30672493]
[1763101110379,0.20606447,97057.0,97048.0,0.30672538]
[1763101110584,0.20606447,97057.0,97048.0,0.1006426]
[1763101111123,0.20606447,97057.0,97056.0,0.01273]
[1763101111673,0.20606447,97057.0,97056.0,0.01173]
[1763101111858,0.20606447,97057.0,97056.0,0.01273]
[1763101112209,0.26788258,97057.0,97056.0,0.001]
[1763101112410,0.59088258,97057.0,97056.0,0.001]
[1763101112612,0.52906447,97057.0,97056.0,0.001]
[1763101113040,0.20611544,97033.0,97021.0,0.03524]
[1763101113280,0.20613881,97022.0,97021.0,0.01173]
[1763101113614,0.20613668,97023.0,97022.0,0.02351]
[1763101113828,0.19613668,97023.0,97022.0,0.03938]
[1763101114251,0.19613668,97023.0,97022.0,0.01632752]
[1763101114735,0.19613668,97023.0,97022.0,0.03983752]
[1763101115152,0.20613213,97026.0,97023.0,0.02351]
[1763101115379,0.01030396,97050.0,97024.0,0.1006426]
[1763101115580,0.2061027,97039.0,97038.0,0.01171]
[1763101119825,0.0103029,97060.0,97039.0,0.02351]
[1763101120023,0.20608358,97048.0,97039.0,0.02351]
[1763101120231,0.20610057,97040.0,97038.0,0.01171]
[1763101120411,0.20610057,97040.0,97039.0,0.1241526]
[1763101120642,0.20610057,97040.0,97039.0,0.13773886]
[1763101120847,0.20610057,97040.0,97039.0,0.11422886]
[1763101123120,0.20610057,97040.0,97039.0,0.11622886]
[1763101124103,0.2061005,97041.0,97039.0,0.11622886]
[1763101124310,0.2061005,97041.0,97039.0,0.002]
[1763101124560,0.323,97040.0,97039.0,0.002]
[1763101125422,0.323,97040.0,97039.0,0.001]
[1763101125622,0.323,97040.0,97039.0,0.002]
[1763101125821,0.2061027,97039.0,97022.0,0.00045752]
[1763101126047,0.20613668,97023.0,97022.0,0.00045752]
[1763101126829,0.20613668,97023.0,97022.0,0.02396752]
[1763101127444,0.20613668,97023.0,97022.0,0.02496752]
[1763101127640,0.20613463,97024.0,97022.0,0.02596752]
[1763101127842,0.0103029,97060.0,97031.0,0.01587]
[1763101128026,0.216361,97060.0,97059.0,0.01587]
[1763101128436,0.216361,97060.0,97049.0,0.01171]
[1763101128437,0.20607934,97050.0,97049.0,0.01171]
[1763101128738,0.20607934,97050.0,97038.0,0.03522]
[1763101128739,0.2061027,97039.0,97038.0,0.03522]
[1763101128941,0.2061027,97039.0,97038.0,0.01171]
[1763101129150,0.2061027,97039.0,97038.0,0.03567752]
[1763101129572,0.20609988,97041.0,97038.0,0.01216752]
[1763101129771,0.20609988,97041.0,97040.0,0.1006426]
[1763101130768,0.20609988,97041.0,97040.0,0.1016426]
[1763101131370,0.20609988,97041.0,97040.0,0.001]
[1763101131797,0.20609988,97041.0,97040.0,0.002]
[1763101132434,0.52909988,97041.0,97040.0,0.001]
[1763101132643,0.5291027,97039.0,97038.0,0.00045752]
[1763101133889,0.5291027,97039.0,97038.0,0.00145752]
[1763101136653,0.5291027,97039.0,97038.0,0.00045752]
[1763101136849,0.62758606,97039.0,97038.0,0.00045752]
[1763101137066,0.5291027,97039.0,97038.0,0.00045752]
[1763101137264,0.2061027,97039.0,97038.0,0.00045752]
[1763101144667,0.20609988,97041.0,97038.0,0.00045752]
[1763101144973,0.0103029,97060.0,97047.0,0.01596]
[1763101145172,0.20608146,97049.0,97048.0,0.02399]
[1763101146395,0.21636263,97060.0,97057.0,0.02778]
[1763101146742,0.21636263,97060.0,97059.0,0.01596]
[1763101146923,0.20606235,97058.0,97057.0,0.01182]
[1763101147129,0.20608146,97049.0,97048.0,0.001]
[1763101147535,0.20608146,97049.0,97048.0,0.002]
[1763101147736,0.20608146,97049.0,97048.0,0.02668]
[1763101147945,0.20608127,97050.0,97048.0,0.02568]
[1763101148144,0.20608127,97050.0,97048.0,0.02468]
[1763101148507,0.20608127,97050.0,97048.0,0.02568]
[1763101150207,0.20608127,97050.0,97048.0,0.001]
[1763101150610,0.20608127,97050.0,97049.0,0.02468]
[1763101152509,0.20608127,97050.0,97049.0,0.02568]
[1763101152746,0.0103029,97060.0,97049.0,0.02568]
[1763101153014,0.20605803,97061.0,97059.0,0.1167826]
[1763101153220,0.20605803,97061.0,97059.0,0.11351786]
[1763101153441,0.20605081,97064.0,97060.0,0.02468]
[1763101153643,0.20605598,97061.0,97060.0,0.02468]
[1763101154872,0.20605598,97061.0,97060.0,0.02568]
[1763101155327,0.20605598,97061.0,97060.0,0.02668]
[1763101155549,0.20605598,97061.0,97060.0,0.002]
[1763101156161,0.20605598,97061.0,97060.0,0.001]
[1763101156889,0.20607297,97053.0,97052.0,0.01197]
[1763101158110,0.20607297,97053.0,97052.0,0.01297]
[1763101158550,0.20607297,97053.0,97052.0,0.01197]
[1763101158759,0.20607297,97053.0,97052.0,0.01297]
[1763101158958,0.20607297,97053.0,97052.0,0.01397]
[1763101159953,0.21634084,97070.0,97052.0,0.03597556]
[1763101160152,0.20604537,97066.0,97065.0,0.1006426]
[1763101161789,0.20600977,97083.0,97065.0,0.1006426]
[1763101161992,0.20601565,97080.0,97079.0,0.01614]
[1763101162223,0.20602626,97075.0,97074.0,0.01197]
[1763101163166,0.20616372,97075.0,97074.0,0.01197]
[1763101164373,0.20616372,97075.0,97074.0,0.01297]
[1763101164749,0.20616372,97075.0,97074.0,0.01197]
[1763101164949,0.52916372,97075.0,97074.0,0.01197]
[1763101165150,0.52916372,97075.0,97074.0,0.01297]
[1763101167001,0.52916372,97075.0,97074.0,0.03765]
[1763101167410,0.52916372,97075.0,97074.0,0.01297]
[1763101167812,0.20616372,97075.0,97074.0,0.01297]
[1763101168738,0.00013746,97075.0,97074.0,0.01297]
[1763101168969,0.00013746,97075.0,97074.0,0.03686986]
[1763101169708,0.00013746,97075.0,97074.0,0.03786986]
[1763101170120,0.00013746,97075.0,97074.0,0.03686986]
[1763101170374,0.00013746,97075.0,97074.0,0.03886986]
[1763101170577,0.00013746,97075.0,97074.0,0.03786986]
[1763101170952,0.00013746,97075.0,97074.0,0.03886986]
[1763101171151,0.00013746,97075.0,97074.0,0.03586986]
[1763101171618,0.00013746,97075.0,97074.0,0.0822886]
[1763101171939,0.00013746,97075.0,97074.0,0.0812886]
[1763101172149,0.00013746,97075.0,97074.0,0.0822886]
[1763101172365,0.00013746,97075.0,97074.0,0.03886986]
[1763101172801,0.00013746,97075.0,97074.0,0.24289825]
[1763101173267,0.00013746,97075.0,97074.0,0.24489825]
[1763101173750,0.00013746,97075.0,97074.0,0.28831699]
[1763101175085,0.00013746,97075.0,97074.0,0.0822886]
[1763101178732,0.20616372,97075.0,97074.0,0.03886986]
[1763101179307,0.20616372,97075.0,97074.0,0.01497]
[1763101179526,0.00013746,97075.0,97074.0,0.01497]
[1763101180011,0.00013746,97075.0,97074.0,0.01297]
[1763101180984,0.00013746,97075.0,97074.0,0.01197]
[1763101181408,0.00013746,97075.0,97074.0,0.01297]
[1763101181618,0.00013746,97075.0,97074.0,0.027837]
[1763101182056,0.00013746,97075.0,97074.0,0.030837]
[1763101182517,0.00013746,97075.0,97074.0,0.01297]
[1763101182970,0.00013746,97075.0,97074.0,0.01497]
[1763101183168,0.00013746,97075.0,97074.0,0.01397]
[1763101183368,0.00013746,97075.0,97074.0,0.01197]
[1763101183592,0.00013746,97075.0,97074.0,0.01297]
[1763101184052,0.00013746,97075.0,97074.0,0.58541713]
[1763101184210,0.00013746,97075.0,97074.0,0.43545336]
[1763101184482,0.00013746,97075.0,97074.0,0.54199839]
[1763101184701,0.00013746,97075.0,97074.0,0.54299839]
[1763101185114,0.00013746,97075.0,97074.0,0.54099839]
[1763101185478,0.00013746,97075.0,97074.0,0.58641713]
[1763101185814,0.00013746,97075.0,97074.0,0.58441713]
[1763101186053,0.00013746,97075.0,97074.0,0.68290049]
[1763101186256,0.00013746,97075.0,97074.0,0.68490049]
[1763101187083,0.00013746,97075.0,97074.0,0.68590049]
[1763101191183,0.00013746,97075.0,97074.0,0.68490049]
[1763101191362,0.00013746,97075.0,97074.0,0.68290049]
[1763101192358,0.00013746,97075.0,97074.0,0.43345336]
[1763101192562,0.00013746,97075.0,97074.0,0.11045336]
[1763101192796,0.00013746,97075.0,97074.0,0.01197]
[1763101193371,0.00013746,97075.0,97074.0,0.37838874]
[1763101194037,0.00013746,97075.0,97074.0,0.52408874]
[1763101194606,0.02761921,97126.0,97074.0,0.52408874]
[1763101194607,0.01029654,97120.0,97084.0,0.04341874]
[1763101194769,0.01029654,97120.0,97080.0,0.01030078]
[1763101194770,0.21636689,97120.0,97119.0,0.02754]
[1763101194976,0.21636689,97120.0,97119.0,0.04155726]
[1763101195220,0.21636689,97120.0,97119.0,0.06600726]
[1763101195441,0.21636689,97120.0,97119.0,0.05199]
[1763101195923,0.21636689,97120.0,97119.0,0.01199]
[1763101197303,0.21636689,97120.0,97119.0,0.03644]
[1763101198379,0.21636689,97120.0,97119.0,0.01199]
[1763101199247,0.00013743,97120.0,97119.0,0.01199]
[1763101199489,0.00013743,97120.0,97119.0,0.03498267]
[1763101199702,0.00013743,97120.0,97119.0,0.01199]
[1763101200388,0.00013743,97120.0,97119.0,0.01299]
[1763101200606,0.00013743,97120.0,97119.0,0.001]
[1763101201031,0.00013743,97120.0,97119.0,0.01316]
[1763101201459,0.00013743,97120.0,97119.0,0.01216]
[1763101202968,0.00013743,97120.0,97119.0,0.03687]
[1763101203741,0.00013743,97120.0,97119.0,0.01316]
[1763101205237,0.00013743,97120.0,97119.0,0.03787]
[1763101205442,0.00013743,97120.0,97119.0,0.001]
[1763101206341,0.52906823,97120.0,97119.0,0.001]
[1763101206565,0.52896261,97105.0,97104.0,0.01199]
[1763101207828,0.52896261,97105.0,97104.0,0.01299]
[1763101208892,0.527515,97105.0,97104.0,0.02856]
[1763101210653,0.527515,97105.0,97104.0,0.01299]
[1763101213206,0.204515,97105.0,97104.0,0.01299]
[1763101214096,0.204515,97105.0,97104.0,0.01199]
[1763101214517,0.204515,97105.0,97104.0,0.0356]
[1763101214900,0.204515,97105.0,97104.0,0.01299]
[1763101216053,0.204515,97105.0,97104.0,0.001]
[1763101216487,0.24793374,97105.0,97104.0,0.001]
[1763101216701,0.59306091,97105.0,97104.0,0.001]
[1763101216917,0.59306091,97105.0,97071.0,0.01199]
[1763101216918,0.20603263,97072.0,97071.0,0.01199]
[1763101219073,0.02761921,97102.0,97071.0,0.0346]
[1763101219277,0.323,97099.0,97084.0,0.1006426]
[1763101219453,0.20600504,97085.0,97084.0,0.1006426]
[1763101219672,0.20600929,97083.0,97082.0,0.02261]
[1763101219903,0.20600504,97085.0,97072.0,0.01352426]
[1763101219904,0.20602421,97076.0,97073.0,0.02261]
[1763101220094,0.20603051,97073.0,97071.0,0.01199]
[1763101220510,0.20604961,97064.0,97056.0,0.01199]
[1763101220711,0.20604961,97064.0,97063.0,0.01229746]
[1763101221271,0.20604961,97064.0,97063.0,0.03490746]
[1763101222075,0.20604961,97064.0,97063.0,0.01229746]
[1763101222562,0.20604961,97064.0,97063.0,0.03590746]
[1763101222786,0.20604961,97064.0,97063.0,0.03490746]
[1763101223360,0.20604961,97064.0,97063.0,0.01229746]
[1763101225189,0.20604961,97064.0,97063.0,0.01329746]
[1763101226005,0.20604961,97064.0,97063.0,0.01229746]
[1763101226215,0.20604961,97064.0,97063.0,0.01429746]
[1763101226847,0.3823219,97090.0,97072.0,0.01557]
[1763101226995,0.20601777,97079.0,97074.0,0.01557]
[1763101227209,0.20602003,97078.0,97074.0,0.1162126]
[1763101227409,0.20602626,97075.0,97074.0,0.1388226]
[1763101227610,0.20602626,97075.0,97074.0,0.15270486]
[1763101228008,0.20602626,97075.0,97074.0,0.1162126]
[1763101228664,0.20602626,97075.0,97074.0,0.01557]
[1763101229069,0.20602626,97075.0,97074.0,0.02756]
[1763101230268,0.20604961,97064.0,97063.0,0.01229746]
[1763101230498,0.20604961,97064.0,97063.0,0.04160272]
[1763101231071,0.20604961,97064.0,97063.0,0.01229746]
[1763101231485,0.20604961,97064.0,97063.0,0.03485746]
[1763101231883,0.20604961,97064.0,97063.0,0.01229746]
[1763101232682,0.20604961,97064.0,97063.0,0.01329746]
[1763101232905,0.20604961,97064.0,97063.0,0.03585746]
[1763101233073,0.59086362,97064.0,97063.0,0.00113746]
[1763101233559,0.52904961,97064.0,97063.0,0.00113746]
[1763101234679,0.52904961,97064.0,97063.0,0.00013746]
[1763101237609,0.55107615,97064.0,97063.0,0.00013746]
[1763101239300,0.56063486,97064.0,97063.0,0.00013746]
[1763101240717,0.53860956,97064.0,97063.0,0.00013746]
[1763101241008,0.52904961,97064.0,97063.0,0.00013746]
[1763101241336,0.53861018,97064.0,97063.0,0.00013746]
[1763101241455,0.52904961,97064.0,97063.0,0.00013746]
[1763101244368,0.20604961,97064.0,97063.0,0.01190746]
[1763101244571,0.20604961,97064.0,97063.0,0.00013746]
[1763101246687,0.59086362,97064.0,97063.0,0.00013746]
[1763101246897,0.64170726,97064.0,97063.0,0.00013746]
[1763101248066,0.57989325,97064.0,97063.0,0.00013746]
[1763101248870,0.57989325,97064.0,97063.0,0.01190746]
[1763101249127,0.23772213,97064.0,97063.0,0.01190746]
[1763101249340,0.21563612,97064.0,97063.0,0.01190746]
[1763101249549,0.20604961,97064.0,97063.0,0.01190746]
[1763101250164,0.20604338,97067.0,97063.0,0.01190746]
[1763101250369,0.20604324,97067.0,97066.0,0.1006426]
[1763101251535,0.20604324,97067.0,97066.0,0.1026426]
[1763101252018,0.2060406,97069.0,97066.0,0.1026426]
[1763101252363,0.2060406,97069.0,97067.0,0.02256]
[1763101252563,0.2060406,97069.0,97068.0,0.01371101]
[1763101253418,0.2060406,97069.0,97068.0,0.03627101]
[1763101253825,0.20398024,97069.0,97068.0,0.05161101]
[1763101254027,0.20398024,97069.0,97068.0,0.05261101]
[1763101254539,0.20398024,97069.0,97068.0,0.01471101]
[1763101255165,0.20398024,97069.0,97068.0,0.001]
[1763101256049,0.20604961,97064.0,97063.0,0.01190746]
[1763101257704,0.20604961,97064.0,97063.0,0.01290746]
[1763101258664,0.20604961,97064.0,97063.0,0.00113746]
[1763101259200,0.20604961,97064.0,97063.0,0.00013746]
[1763101259571,0.20604961,97064.0,97063.0,0.01290746]
[1763101260298,0.20604961,97064.0,97063.0,0.01190746]
[1763101260504,0.20604314,97068.0,97063.0,0.01290746]
[1763101260706,0.01029972,97090.0,97067.0,0.1006426]
[1763101260896,0.206039,97069.0,97068.0,0.01135501]
[1763101261096,0.206039,97069.0,97068.0,0.03412501]
[1763101261562,0.206039,97069.0,97068.0,0.01135501]
[1763101261766,0.206039,97069.0,97068.0,0.06135501]
[1763101262902,0.206039,97069.0,97068.0,0.05]
[1763101263302,0.206039,97069.0,97068.0,0.052]
[1763101263802,0.206039,97069.0,97068.0,0.051]
[1763101264003,0.206039,97069.0,97068.0,0.052]
[1763101265063,0.2060199,97078.0,97077.0,0.0154]
[1763101265265,0.20603688,97070.0,97069.0,0.02277]
[1763101266474,0.20602399,97077.0,97069.0,0.02277]
[1763101266700,0.01029972,97090.0,97080.0,0.20601489]
[1763101266701,0.20600702,97085.0,97080.0,0.20601489]
[1763101266903,0.01029972,97090.0,97084.0,0.1006426]
[1763101267217,0.01029866,97100.0,97093.0,0.02668]
[1763101267423,0.21627225,97100.0,97099.0,0.1160426]
[1763101267643,0.21627225,97100.0,97099.0,0.1119726]
[1763101267846,0.21627225,97100.0,97099.0,0.01133]
[1763101269265,0.21627225,97100.0,97099.0,0.01233]
[1763101269862,0.2059702,97102.0,97099.0,0.03474]
[1763101270058,0.20595413,97109.0,97108.0,0.01585]
[1763101270420,0.20596731,97103.0,97101.0,0.1006426]
[1763101270939,0.20596731,97103.0,97101.0,0.1240526]
[1763101271139,0.20596731,97103.0,97102.0,0.02341]
[1763101273257,0.20596731,97103.0,97102.0,0.02441]
[1763101273677,0.20596731,97103.0,97102.0,0.001]
[1763101274491,0.20597322,97100.0,97099.0,0.01133]
[1763101274714,0.20597322,97100.0,97099.0,0.03474]
[1763101275139,0.20597322,97100.0,97099.0,0.01133]
[1763101277020,0.20597322,97100.0,97099.0,0.03474]
[1763101277424,0.20597322,97100.0,97099.0,0.01133]
[1763101277832,0.20597322,97100.0,97099.0,0.01233]
[1763101278612,0.20597322,97100.0,97099.0,0.01133]
[1763101280784,0.20597322,97100.0,97099.0,0.03574]
[1763101281186,0.20597322,97100.0,97099.0,0.01233]
[1763101281319,0.20597322,97100.0,97099.0,0.01133]
[1763101281527,0.20597322,97100.0,97099.0,0.01333]
[1763101283368,0.20597322,97100.0,97099.0,0.01133]
[1763101284550,0.20600716,97084.0,97083.0,0.01133]
[1763101284701,0.20500716,97084.0,97083.0,0.01133]
[1763101285554,0.00999999,97120.0,97084.0,0.02341]
[1763101285747,0.2060008,97087.0,97086.0,0.1006426]
[1763101285921,0.2060008,97087.0,97086.0,0.11428086]
[1763101287453,0.20598148,97097.0,97095.0,0.01585]
[1763101287812,0.20598148,97097.0,97095.0,0.03926]
[1763101288020,0.20598148,97097.0,97095.0,0.02341]
[1763101288226,0.20599943,97088.0,97086.0,0.11428086]
[1763101288425,0.20599943,97088.0,97087.0,0.01256109]
[1763101288727,0.20599943,97088.0,97087.0,0.03597109]
[1763101288949,0.20599654,97090.0,97087.0,0.03597109]
[1763101289114,0.20599655,97089.0,97088.0,0.02341]
[1763101289940,0.20599654,97090.0,97088.0,0.02341]
[1763101290134,0.20599654,97090.0,97089.0,0.01635819]
[1763101290593,0.20599868,97088.0,97087.0,0.001]
[1763101290784,0.20599868,97088.0,97083.0,0.01133]
[1763101290785,0.20600716,97084.0,97083.0,0.01133]
[1763101291934,0.20601777,97079.0,97071.0,0.03593]
[1763101292135,0.20603263,97072.0,97071.0,0.01133]
[1763101292366,0.20603263,97072.0,97071.0,0.02752726]
[1763101293810,0.20603263,97072.0,97071.0,0.05312726]
[1763101294266,0.20603263,97072.0,97071.0,0.02852726]
[1763101294480,0.20603263,97072.0,97071.0,0.02952726]
[1763101295311,0.20603263,97072.0,97071.0,0.05412726]
[1763101295535,0.20603263,97072.0,97071.0,0.002]
[1763101295659,0.52903263,97072.0,97071.0,0.002]
[1763101296374,0.52903263,97072.0,97071.0,0.001]
[1763101297047,0.206039,97069.0,97068.0,0.05]
[1763101299656,0.206039,97069.0,97068.0,0.051]
[1763101300674,0.529039,97069.0,97068.0,0.051]
[1763101302369,0.529039,97069.0,97068.0,0.05]
[1763101309455,0.62752236,97069.0,97068.0,0.05]
[1763101309706,0.529039,97069.0,97068.0,0.05]
[1763101314849,0.323,97054.0,97027.0,0.0123]
[1763101315050,0.20612606,97028.0,97027.0,0.01275752]
[1763101316197,0.20612606,97028.0,97027.0,0.03735752]
[1763101316585,0.20612606,97028.0,97027.0,0.01275752]
[1763101316799,0.20612606,97028.0,97027.0,0.01375752]
[1763101317416,0.20612606,97028.0,97027.0,0.03835752]
[1763101317794,0.20612606,97028.0,97027.0,0.01375752]
[1763101318196,0.20612606,97028.0,97027.0,0.01275752]
[1763101318513,0.20612606,97028.0,97027.0,0.03835752]
[1763101318913,0.20612606,97028.0,97027.0,0.01375752]
[1763101319814,0.20611313,97035.0,97027.0,0.01375752]
[1763101319933,0.20612606,97028.0,97027.0,0.01375752]
[1763101320533,0.20611531,97034.0,97027.0,0.01375752]
[1763101320738,0.20610694,97037.0,97036.0,0.02811]
[1763101320947,0.20610694,97037.0,97036.0,0.01188]
[1763101322300,0.20610694,97037.0,97036.0,0.01288]
[1763101322950,0.20610444,97039.0,97037.0,0.02453]
[1763101323174,0.20610482,97038.0,97037.0,0.02453]
[1763101323394,0.20608571,97047.0,97046.0,0.02811]
[1763101323629,0.20608571,97047.0,97046.0,0.01188]
[1763101325830,0.20608571,97047.0,97046.0,0.01388]
[1763101326067,0.20608571,97047.0,97046.0,0.01288]
[1763101326318,0.20608571,97047.0,97046.0,0.03741]
[1763101326732,0.20608571,97047.0,97046.0,0.01288]
[1763101327196,0.20608571,97047.0,97046.0,0.01188]
[1763101327411,0.20608571,97047.0,97046.0,0.03609]
[1763101327621,0.20608571,97047.0,97046.0,0.01288]
[1763101328575,0.52908571,97047.0,97046.0,0.001]
[1763101331071,0.20608571,97047.0,97046.0,0.001]
[1763101333861,0.20606646,97057.0,97055.0,0.01516]
[1763101334118,0.2060581,97060.0,97059.0,0.1270926]
[1763101334463,0.2060581,97060.0,97059.0,0.1119326]
[1763101335323,0.2060581,97060.0,97059.0,0.11207006]
[1763101335815,0.2060581,97060.0,97059.0,0.11307006]
[1763101336776,0.2060581,97060.0,97059.0,0.00113746]
[1763101337795,0.2060581,97060.0,97059.0,0.00013746]
[1763101338416,0.2060581,97060.0,97059.0,0.01142746]
[1763101339591,0.2060581,97060.0,97059.0,0.00013746]
[1763101340223,0.26787362,97060.0,97059.0,0.00013746]
[1763101340642,0.2060581,97060.0,97059.0,0.00013746]
[1763101341660,0.5290581,97060.0,97059.0,0.00013746]
[1763101343787,0.56000662,97060.0,97059.0,0.00013746]
[1763101344242,0.5290581,97060.0,97059.0,0.00013746]
[1763101345002,0.5290581,97060.0,97059.0,0.01142746]
[1763101351130,0.20607084,97054.0,97053.0,0.00635408]
[1763101351350,0.20607084,97054.0,97053.0,0.00045752]
[1763101352545,0.20607084,97054.0,97053.0,0.00145752]
[1763101355284,0.20607084,97054.0,97053.0,0.00045752]
[1763101357254,0.52907084,97054.0,97053.0,0.00045752]
[1763101357474,0.59325857,97054.0,97053.0,0.00045752]
[1763101357653,0.66035731,97054.0,97053.0,0.00045752]
[1763101357844,0.68239936,97054.0,97053.0,0.00045752]
[1763101358714,0.20614306,97020.0,97013.0,0.01152]
[1763101358926,0.20615537,97015.0,97013.0,0.01152]
[1763101359382,0.20615537,97015.0,97012.0,0.11353306]
[1763101359383,0.20615793,97013.0,97012.0,0.11353306]
[1763101360353,0.53929974,97013.0,97012.0,0.11353306]
[1763101360605,0.52915793,97013.0,97012.0,0.11353306]
[1763101362331,0.59334566,97013.0,97012.0,0.11353306]
[1763101362533,0.52915793,97013.0,97012.0,0.11353306]
[1763101366387,0.5601215,97013.0,97012.0,0.11353306]
[1763101366624,0.5601215,97013.0,97000.0,10.05036]
[1763101366625,0.20618344,97001.0,97000.0,10.05036]
[1763101366881,0.87064018,97001.0,97000.0,9.03633]
[1763101367060,0.57260218,97001.0,97000.0,9.03633]
[1763101367258,0.79573424,97001.0,97000.0,9.03633]
[1763101367482,0.62294188,97001.0,97000.0,9.03633]
[1763101367615,0.52918344,97001.0,97000.0,9.03633]
[1763101368338,0.53118344,97001.0,97000.0,9.03633]
[1763101368756,0.57460218,97001.0,97000.0,9.03633]
[1763101368977,0.79087318,97001.0,97000.0,9.03633]
[1763101369168,0.8003599,97001.0,97000.0,9.03633]
[1763101369387,0.81731813,97001.0,97000.0,9.03633]
[1763101369848,0.83916147,97001.0,97000.0,9.03633]
[1763101370004,0.84016147,97001.0,97000.0,9.03633]
[1763101370205,0.83916147,97001.0,97000.0,9.03633]
[1763101370381,0.84016147,97001.0,97000.0,9.03633]
[1763101370565,0.84014435,97001.0,97000.0,9.03633]
[1763101370777,0.83914383,97001.0,97000.0,9.03633]
[1763101370984,0.84114383,97001.0,97000.0,9.03633]
[1763101371185,0.84112916,97001.0,97000.0,9.03633]
[1763101371391,0.73159713,97001.0,97000.0,9.03633]
[1763101371592,0.60104713,97001.0,97000.0,9.03633]
[1763101371785,0.68738839,97001.0,97000.0,9.03633]
[1763101372016,0.63900916,97001.0,97000.0,9.03633]
[1763101372215,0.5820889,97001.0,97000.0,9.03633]
[1763101372626,0.20818344,97001.0,97000.0,9.03633]
[1763101372982,0.20618344,97001.0,97000.0,9.03633]
[1763101373396,0.20818344,97001.0,97000.0,9.03633]
[1763101373611,0.20618344,97001.0,97000.0,9.03633]
[1763101373820,0.20618038,97003.0,97000.0,9.03633]
[1763101374023,0.001,97001.0,97000.0,9.03633]
[1763101374243,0.20618038,97003.0,97000.0,9.03633]
[1763101374626,0.001,97001.0,97000.0,9.03633]
[1763101375241,0.001,97001.0,97000.0,9.03243]
[1763101375671,0.20618038,97003.0,97000.0,9.03243]
[1763101376443,0.20618344,97001.0,97000.0,9.03243]
[1763101376865,0.52918344,97001.0,97000.0,9.03243]
[1763101377636,0.53018344,97001.0,97000.0,9.03243]
[1763101379595,0.52918344,97001.0,97000.0,9.03243]
[1763101379801,0.53018344,97001.0,97000.0,9.03243]
[1763101380208,0.52918344,97001.0,97000.0,9.03243]
[1763101380576,0.53018344,97001.0,97000.0,9.03243]
[1763101380813,0.57360218,97001.0,97000.0,9.03243]
[1763101381059,0.58306503,97001.0,97000.0,9.03243]
[1763101381659,1.36939275,97001.0,97000.0,9.03243]
[1763101381879,1.31939275,97001.0,97000.0,9.03243]
[1763101382522,1.34691725,97001.0,97000.0,9.00314391]
[1763101382651,1.34591725,97001.0,97000.0,9.00314391]
[1763101382858,1.31839275,97001.0,97000.0,9.00314391]
[1763101383063,1.31939275,97001.0,97000.0,9.00314391]
[1763101383286,1.31839275,97001.0,97000.0,9.00314391]
[1763101383810,1.32239275,97001.0,97000.0,9.00314391]
[1763101383960,1.31939275,97001.0,97000.0,9.00314391]
[1763101384208,1.32039275,97001.0,97000.0,9.00314391]
[1763101384420,1.32239275,97001.0,97000.0,9.00314391]
[1763101384866,0.94750601,97001.0,97000.0,9.00314391]
[1763101385084,1.02731918,97001.0,97000.0,9.00314391]